[Event "Titled Tuesday Blitz December 27 Early 2022"]
[White "Sankalan Shah"]
[Black "Koutlas, Nikolaos"]
[WhiteFideId "25600362"]
[BlackFideId "25827138"]
[WhiteElo "2179"]
[BlackElo "2341"]
[Result "0-1"]
[Round "01"]
[TimeControl "180+2"]
[Date "2022.12.27"]
[WhiteClock "0:00:20"]
[BlackClock "0:01:09"]

1. d4 {[%clk 0:02:57]}  Nf6 {[%clk 0:02:56]} 2. c4 {[%clk 0:02:57]}  b6 {[%clk 0:02:56]} 3. Nc3 {[%clk 0:02:56]}  e6 {[%clk 0:02:56]} 4. e4 {[%clk 0:02:51]}  Bb4 {[%clk 0:02:53]} 5. Bd3 {[%clk 0:02:50]}  Bb7 {[%clk 0:02:52]} 6. f3 {[%clk 0:02:49]}  d5 {[%clk 0:02:49]} 7. cxd5 {[%clk 0:02:48]}  exd5 {[%clk 0:02:47]} 8. e5 {[%clk 0:02:48]}  Nh5 {[%clk 0:02:47]} 9. Ne2 {[%clk 0:02:25]}  c5 {[%clk 0:02:42]} 10. Be3 {[%clk 0:02:14]}  cxd4 {[%clk 0:02:39]} 11. Bxd4 {[%clk 0:02:04]}  Nc6 {[%clk 0:02:38]} 12. O-O {[%clk 0:01:57]}  O-O {[%clk 0:02:37]} 13. Bc2 {[%clk 0:01:52]}  Nxd4 {[%clk 0:02:35]} 14. Nxd4 {[%clk 0:01:53]}  Nf4 {[%clk 0:02:31]} 15. g3 {[%clk 0:01:31]}  Qg5 {[%clk 0:02:19]} 16. Kh1 {[%clk 0:01:27]}  Ne6 {[%clk 0:02:18]} 17. Qd3 {[%clk 0:01:20]}  g6 {[%clk 0:02:13]} 18. f4 {[%clk 0:01:09]}  Qh5 {[%clk 0:02:11]} 19. Nce2 {[%clk 0:01:09]}  Rac8 {[%clk 0:02:05]} 20. a3 {[%clk 0:01:06]}  Bc5 {[%clk 0:02:04]} 21. Rac1 {[%clk 0:00:58]}  Qh3 {[%clk 0:01:29]} 22. b4 {[%clk 0:00:45]}  Nxd4 {[%clk 0:01:22]} 23. bxc5 {[%clk 0:00:32]}  Nxc2 {[%clk 0:01:17]} 24. c6 {[%clk 0:00:20]}  Rxc6 {[%clk 0:01:09]} 0-1


[Site "https://www.chess.com"]

[Event "Titled Tuesday Blitz December 27 Early 2022"]
[White "Santos Flores, Alberto"]
[Black "Timofeev, Artyom"]
[WhiteFideId "3601234"]
[BlackFideId "4140419"]
[WhiteElo "2164"]
[BlackElo "2567"]
[Result "1/2-1/2"]
[Round "01"]
[TimeControl "180+2"]
[Date "2022.12.27"]
[WhiteClock "0:00:27"]
[BlackClock "0:00:30"]

1. e4 {[%clk 0:02:58]}  c5 {[%clk 0:02:59]} 2. Nf3 {[%clk 0:02:58]}  Nc6 {[%clk 0:02:59]} 3. Nc3 {[%clk 0:02:58]}  d6 {[%clk 0:02:55]} 4. d4 {[%clk 0:02:57]}  cxd4 {[%clk 0:02:55]} 5. Nxd4 {[%clk 0:02:58]}  Nf6 {[%clk 0:02:55]} 6. Bg5 {[%clk 0:02:55]}  e6 {[%clk 0:02:55]} 7. Bb5 {[%clk 0:02:55]}  Bd7 {[%clk 0:02:55]} 8. Bxc6 {[%clk 0:02:55]}  bxc6 {[%clk 0:02:53]} 9. Qf3 {[%clk 0:02:55]}  h6 {[%clk 0:02:48]} 10. Bxf6 {[%clk 0:02:54]}  Qxf6 {[%clk 0:02:47]} 11. Qxf6 {[%clk 0:02:52]}  gxf6 {[%clk 0:02:47]} 12. f4 {[%clk 0:02:45]}  c5 {[%clk 0:02:42]} 13. Nb3 {[%clk 0:02:22]}  h5 {[%clk 0:02:37]} 14. O-O {[%clk 0:02:21]}  h4 {[%clk 0:02:34]} 15. Rad1 {[%clk 0:02:18]}  Ke7 {[%clk 0:02:31]} 16. Nd2 {[%clk 0:02:17]}  Kd8 {[%clk 0:02:25]} 17. Nc4 {[%clk 0:02:13]}  Kc7 {[%clk 0:02:25]} 18. a4 {[%clk 0:02:07]}  Rb8 {[%clk 0:02:20]} 19. b3 {[%clk 0:02:05]}  Be7 {[%clk 0:02:15]} 20. Rf2 {[%clk 0:02:00]}  Bc6 {[%clk 0:02:14]} 21. Rfd2 {[%clk 0:01:59]}  Rhd8 {[%clk 0:02:12]} 22. Na3 {[%clk 0:01:50]}  a6 {[%clk 0:02:09]} 23. Nc4 {[%clk 0:01:50]}  Rb4 {[%clk 0:02:08]} 24. a5 {[%clk 0:01:40]}  Rbb8 {[%clk 0:01:59]} 25. Kf2 {[%clk 0:01:34]}  Rd7 {[%clk 0:01:32]} 26. Nb6 {[%clk 0:01:32]}  Rdd8 {[%clk 0:01:31]} 27. Nc4 {[%clk 0:01:31]}  f5 {[%clk 0:01:21]} 28. exf5 {[%clk 0:01:29]}  Bf6 {[%clk 0:01:21]} 29. Ne2 {[%clk 0:01:03]}  d5 {[%clk 0:01:18]} 30. Ne5 {[%clk 0:01:01]}  Bxe5 {[%clk 0:01:12]} 31. fxe5 {[%clk 0:01:02]}  exf5 {[%clk 0:01:09]} 32. Nf4 {[%clk 0:01:01]}  d4 {[%clk 0:01:09]} 33. e6 {[%clk 0:00:54]}  Kd6 {[%clk 0:01:07]} 34. Re1 {[%clk 0:00:52]}  Be4 {[%clk 0:01:05]} 35. exf7 {[%clk 0:00:49]}  Rf8 {[%clk 0:01:04]} 36. c3 {[%clk 0:00:44]}  Rxb3 {[%clk 0:01:02]} 37. cxd4 {[%clk 0:00:43]}  c4 {[%clk 0:01:03]} 38. Rc1 {[%clk 0:00:39]}  c3 {[%clk 0:01:00]} 39. Re2 {[%clk 0:00:37]}  Rxf7 {[%clk 0:01:00]} 40. Re3 {[%clk 0:00:37]}  Rc7 {[%clk 0:00:58]} 41. Ne2 {[%clk 0:00:37]}  Rb2 {[%clk 0:00:37]} 42. Rexc3 {[%clk 0:00:37]}  Rxc3 {[%clk 0:00:36]} 43. Rxc3 {[%clk 0:00:37]}  Bxg2 {[%clk 0:00:31]} 44. Kxg2 {[%clk 0:00:35]}  Rxe2+ {[%clk 0:00:31]} 45. Kh3 {[%clk 0:00:36]}  Kd5 {[%clk 0:00:31]} 46. Rc5+ {[%clk 0:00:33]}  Kxd4 {[%clk 0:00:28]} 47. Rxf5 {[%clk 0:00:33]}  Ra2 {[%clk 0:00:26]} 48. Kxh4 {[%clk 0:00:32]}  Rxh2+ {[%clk 0:00:26]} 49. Kg5 {[%clk 0:00:31]}  Ra2 {[%clk 0:00:25]} 50. Kf6 {[%clk 0:00:27]}  Kc4 {[%clk 0:00:26]} 51. Ke6 {[%clk 0:00:26]}  Kb4 {[%clk 0:00:26]} 52. Kd6 {[%clk 0:00:26]}  Rxa5 {[%clk 0:00:25]} 53. Rxa5 {[%clk 0:00:25]}  Kxa5 {[%clk 0:00:26]} 54. Kc5 {[%clk 0:00:26]}  Ka4 {[%clk 0:00:26]} 55. Kc4 {[%clk 0:00:26]}  a5 {[%clk 0:00:27]} 56. Kc3 {[%clk 0:00:26]}  Ka3 {[%clk 0:00:27]} 57. Kc2 {[%clk 0:00:26]}  Ka2 {[%clk 0:00:27]} 58. Kc1 {[%clk 0:00:26]}  a4 {[%clk 0:00:27]} 59. Kc2 {[%clk 0:00:27]}  a3 {[%clk 0:00:28]} 60. Kc1 {[%clk 0:00:27]}  Ka1 {[%clk 0:00:28]} 61. Kc2 {[%clk 0:00:27]}  Ka2 {[%clk 0:00:29]} 62. Kc1 {[%clk 0:00:27]}  Kb3 {[%clk 0:00:29]} 63. Kb1 {[%clk 0:00:28]}  a2+ {[%clk 0:00:30]} 64. Ka1 {[%clk 0:00:27]}  Ka3 {[%clk 0:00:30]} 1/2-1/2


[Site "https://www.chess.com"]

[Event "Titled Tuesday Blitz December 27 Early 2022"]
[White "Shuvalov, Evgenij"]
[Black "Steinberg, Nitzan"]
[WhiteFideId "4187237"]
[BlackFideId "2801795"]
[WhiteElo "2038"]
[BlackElo "2546"]
[Result "0-1"]
[Round "01"]
[TimeControl "180+2"]
[Date "2022.12.27"]
[WhiteClock "0:00:25"]
[BlackClock "0:01:50"]

1. d4 {[%clk 0:02:52]}  Nf6 {[%clk 0:02:58]} 2. c4 {[%clk 0:02:51]}  g6 {[%clk 0:02:59]} 3. Nc3 {[%clk 0:02:51]}  Bg7 {[%clk 0:02:59]} 4. e4 {[%clk 0:02:51]}  d6 {[%clk 0:03:00]} 5. Nf3 {[%clk 0:02:50]}  O-O {[%clk 0:03:00]} 6. Be2 {[%clk 0:02:50]}  Nbd7 {[%clk 0:03:00]} 7. O-O {[%clk 0:02:50]}  e5 {[%clk 0:03:00]} 8. Be3 {[%clk 0:02:50]}  Re8 {[%clk 0:02:55]} 9. d5 {[%clk 0:02:49]}  a5 {[%clk 0:02:54]} 10. Ne1 {[%clk 0:02:46]}  Rf8 {[%clk 0:02:48]} 11. Nd3 {[%clk 0:02:44]}  b6 {[%clk 0:02:49]} 12. b3 {[%clk 0:02:33]}  Ne8 {[%clk 0:02:49]} 13. g4 {[%clk 0:02:30]}  Nc5 {[%clk 0:02:43]} 14. Nb2 {[%clk 0:02:23]}  f5 {[%clk 0:02:42]} 15. f3 {[%clk 0:02:22]}  Nf6 {[%clk 0:02:34]} 16. g5 {[%clk 0:01:13]}  Nh5 {[%clk 0:02:33]} 17. h4 {[%clk 0:01:10]}  Nf4 {[%clk 0:02:29]} 18. Kh2 {[%clk 0:01:05]}  Qd7 {[%clk 0:02:25]} 19. exf5 {[%clk 0:00:40]}  Qxf5 {[%clk 0:02:24]} 20. Rf2 {[%clk 0:00:39]}  Qh3+ {[%clk 0:02:18]} 21. Kg1 {[%clk 0:00:39]}  Qxh4 {[%clk 0:02:19]} 22. Bxc5 {[%clk 0:00:35]}  Nh3+ {[%clk 0:02:06]} 23. Kg2 {[%clk 0:00:34]}  dxc5 {[%clk 0:02:00]} 24. Ne4 {[%clk 0:00:33]}  Nxf2 {[%clk 0:01:58]} 25. Nxf2 {[%clk 0:00:33]}  e4 {[%clk 0:01:58]} 26. Rb1 {[%clk 0:00:31]}  Bd4 {[%clk 0:01:51]} 27. Nxe4 {[%clk 0:00:25]}  Qh3# {[%clk 0:01:50]} 0-1


[Site "https://www.chess.com"]

[Event "Titled Tuesday Blitz December 27 Early 2022"]
[White "Skliarov, Viktor"]
[Black "Danaci, Ege"]
[WhiteFideId "14106736"]
[BlackFideId "34506748"]
[WhiteElo "2383"]
[BlackElo "2088"]
[Result "1-0"]
[Round "01"]
[TimeControl "180+2"]
[Date "2022.12.27"]
[WhiteClock "0:00:39"]
[BlackClock "0:00:07"]

1. e4 {[%clk 0:02:52]}  c5 {[%clk 0:02:59]} 2. Nf3 {[%clk 0:02:51]}  e6 {[%clk 0:02:59]} 3. c3 {[%clk 0:02:51]}  Nf6 {[%clk 0:02:57]} 4. Bd3 {[%clk 0:02:49]}  d6 {[%clk 0:02:52]} 5. Bc2 {[%clk 0:02:47]}  c4 {[%clk 0:02:29]} 6. b3 {[%clk 0:02:46]}  cxb3 {[%clk 0:02:08]} 7. axb3 {[%clk 0:02:46]}  Be7 {[%clk 0:02:09]} 8. d4 {[%clk 0:02:45]}  O-O {[%clk 0:02:07]} 9. O-O {[%clk 0:02:45]}  Qc7 {[%clk 0:02:02]} 10. Qd3 {[%clk 0:02:34]}  e5 {[%clk 0:01:58]} 11. Na3 {[%clk 0:02:29]}  Bd7 {[%clk 0:01:38]} 12. Rd1 {[%clk 0:02:26]}  a6 {[%clk 0:01:31]} 13. h3 {[%clk 0:01:57]}  Nc6 {[%clk 0:01:31]} 14. Bd2 {[%clk 0:01:47]}  Rac8 {[%clk 0:01:19]} 15. Nc4 {[%clk 0:01:41]}  exd4 {[%clk 0:00:59]} 16. cxd4 {[%clk 0:01:40]}  d5 {[%clk 0:00:59]} 17. exd5 {[%clk 0:01:10]}  Nb4 {[%clk 0:00:58]} 18. Bxb4 {[%clk 0:01:05]}  Bxb4 {[%clk 0:00:59]} 19. Bb1 {[%clk 0:01:01]}  Bb5 {[%clk 0:00:43]} 20. Nfe5 {[%clk 0:00:55]}  g6 {[%clk 0:00:41]} 21. Qf3 {[%clk 0:00:52]}  Qd8 {[%clk 0:00:37]} 22. d6 {[%clk 0:00:48]}  Bxd6 {[%clk 0:00:31]} 23. Nxd6 {[%clk 0:00:48]}  Qxd6 {[%clk 0:00:32]} 24. Qxb7 {[%clk 0:00:48]}  Rfd8 {[%clk 0:00:27]} 25. Qf3 {[%clk 0:00:45]}  Qd5 {[%clk 0:00:16]} 26. Qxf6 {[%clk 0:00:44]}  Rc3 {[%clk 0:00:07]} 27. Be4 {[%clk 0:00:39]} 1-0


[Site "https://www.chess.com"]

[Event "Titled Tuesday Blitz December 27 Early 2022"]
[White "Sonis, Francesco"]
[Black "Ankerst, Mihael"]
[WhiteFideId "895733"]
[BlackFideId "14602369"]
[WhiteElo "2554"]
[BlackElo "2370"]
[Result "0-1"]
[Round "01"]
[TimeControl "180+2"]
[Date "2022.12.27"]
[WhiteClock "0:00:14"]
[BlackClock "0:00:13"]

1. d4 {[%clk 0:02:58]}  Nf6 {[%clk 0:02:59]} 2. Nc3 {[%clk 0:02:57]}  d5 {[%clk 0:02:58]} 3. Bf4 {[%clk 0:02:58]}  g6 {[%clk 0:02:58]} 4. e3 {[%clk 0:02:59]}  Bg7 {[%clk 0:02:58]} 5. h4 {[%clk 0:02:58]}  O-O {[%clk 0:02:58]} 6. h5 {[%clk 0:02:58]}  Re8 {[%clk 0:02:55]} 7. hxg6 {[%clk 0:02:57]}  hxg6 {[%clk 0:02:55]} 8. Bd3 {[%clk 0:02:57]}  Bg4 {[%clk 0:02:54]} 9. f3 {[%clk 0:02:57]}  Bc8 {[%clk 0:02:52]} 10. g4 {[%clk 0:02:54]}  c6 {[%clk 0:02:50]} 11. Qd2 {[%clk 0:02:52]}  Nfd7 {[%clk 0:02:49]} 12. Qh2 {[%clk 0:02:52]}  e5 {[%clk 0:02:48]} 13. Qh7+ {[%clk 0:02:49]}  Kf8 {[%clk 0:02:48]} 14. Bh6 {[%clk 0:02:48]}  Bxh6 {[%clk 0:02:47]} 15. Qxh6+ {[%clk 0:02:43]}  Ke7 {[%clk 0:02:46]} 16. O-O-O {[%clk 0:02:33]}  Kd6 {[%clk 0:02:42]} 17. Nge2 {[%clk 0:02:30]}  Kc7 {[%clk 0:02:41]} 18. e4 {[%clk 0:02:29]}  exd4 {[%clk 0:02:26]} 19. Nxd4 {[%clk 0:02:29]}  Qf6 {[%clk 0:02:26]} 20. Nb3 {[%clk 0:02:20]}  d4 {[%clk 0:02:16]} 21. Ne2 {[%clk 0:02:12]}  c5 {[%clk 0:02:13]} 22. f4 {[%clk 0:02:10]}  Nc6 {[%clk 0:02:05]} 23. g5 {[%clk 0:02:03]}  Qe6 {[%clk 0:01:59]} 24. f5 {[%clk 0:02:03]}  gxf5 {[%clk 0:01:53]} 25. exf5 {[%clk 0:02:01]}  Qe3+ {[%clk 0:01:48]} 26. Kb1 {[%clk 0:02:00]}  Nde5 {[%clk 0:01:47]} 27. Nec1 {[%clk 0:01:55]}  c4 {[%clk 0:01:44]} 28. Rde1 {[%clk 0:01:52]}  cxd3 {[%clk 0:01:27]} 29. Rxe3 {[%clk 0:01:51]}  dxc2+ {[%clk 0:01:27]} 30. Ka1 {[%clk 0:01:45]}  dxe3 {[%clk 0:01:26]} 31. g6 {[%clk 0:01:45]}  Bxf5 {[%clk 0:01:25]} 32. gxf7 {[%clk 0:01:44]}  Nxf7 {[%clk 0:01:23]} 33. Qf4+ {[%clk 0:01:43]}  Nd6 {[%clk 0:01:23]} 34. Rh6 {[%clk 0:01:40]}  Rad8 {[%clk 0:01:20]} 35. Rh2 {[%clk 0:01:34]}  Kb6 {[%clk 0:01:08]} 36. Re2 {[%clk 0:01:30]}  Re4 {[%clk 0:01:05]} 37. Qh6 {[%clk 0:01:30]}  Nc4 {[%clk 0:01:03]} 38. Qg5 {[%clk 0:01:29]}  Rd5 {[%clk 0:01:01]} 39. Rxc2 {[%clk 0:01:19]}  Be6 {[%clk 0:00:51]} 40. Qg2 {[%clk 0:01:14]}  Rde5 {[%clk 0:00:49]} 41. Qe2 {[%clk 0:01:06]}  Bg4 {[%clk 0:00:48]} 42. Qe1 {[%clk 0:01:05]}  e2 {[%clk 0:00:46]} 43. a3 {[%clk 0:01:01]}  a5 {[%clk 0:00:44]} 44. Nd2 {[%clk 0:00:58]}  Nxd2 {[%clk 0:00:40]} 45. Rxd2 {[%clk 0:00:57]}  Nd4 {[%clk 0:00:39]} 46. b4 {[%clk 0:00:47]}  axb4 {[%clk 0:00:36]} 47. axb4 {[%clk 0:00:44]}  Kb5 {[%clk 0:00:36]} 48. Ra2 {[%clk 0:00:41]}  b6 {[%clk 0:00:28]} 49. Nd3 {[%clk 0:00:29]}  Nf3 {[%clk 0:00:25]} 50. Qc3 {[%clk 0:00:19]}  e1=Q+ {[%clk 0:00:25]} 51. Nxe1 {[%clk 0:00:20]}  Rxe1+ {[%clk 0:00:23]} 52. Kb2 {[%clk 0:00:20]}  R5e2+ {[%clk 0:00:21]} 53. Ka3 {[%clk 0:00:20]}  Re3 {[%clk 0:00:21]} 54. Rc2 {[%clk 0:00:20]}  Nd4 {[%clk 0:00:19]} 55. Kb2 {[%clk 0:00:20]}  Rxc3 {[%clk 0:00:16]} 56. Rxc3 {[%clk 0:00:20]}  Re2+ {[%clk 0:00:17]} 57. Ka3 {[%clk 0:00:19]}  Nc2+ {[%clk 0:00:16]} 58. Kb2 {[%clk 0:00:18]}  Nxb4+ {[%clk 0:00:15]} 59. Ka1 {[%clk 0:00:17]}  Be6 {[%clk 0:00:14]} 60. Rf3 {[%clk 0:00:16]}  Bc4 {[%clk 0:00:14]} 61. Rf4 {[%clk 0:00:15]}  Nd3 {[%clk 0:00:13]} 62. Rf1 {[%clk 0:00:14]}  Re1+ {[%clk 0:00:13]} 63. Rxe1 {[%clk 0:00:14]}  Nxe1 {[%clk 0:00:13]} 0-1


[Site "https://www.chess.com"]

[Event "Titled Tuesday Blitz December 27 Early 2022"]
[White "Tactrics"]
[Black "Urbina Perez, Juan Antonio"]
[BlackFideId "2217368"]
[WhiteElo "2976"]
[BlackElo "2266"]
[Result "1-0"]
[Round "01"]
[TimeControl "180+2"]
[Date "2022.12.27"]
[WhiteClock "0:02:20"]
[BlackClock "0:01:27"]

1. e4 {[%clk 0:02:58]}  c5 {[%clk 0:02:57]} 2. Nf3 {[%clk 0:02:57]}  d6 {[%clk 0:02:57]} 3. d4 {[%clk 0:02:55]}  cxd4 {[%clk 0:02:58]} 4. Nxd4 {[%clk 0:02:55]}  Nf6 {[%clk 0:02:58]} 5. f3 {[%clk 0:02:56]}  e5 {[%clk 0:02:57]} 6. Nb3 {[%clk 0:02:57]}  d5 {[%clk 0:02:54]} 7. Bg5 {[%clk 0:02:57]}  Be6 {[%clk 0:02:53]} 8. Bxf6 {[%clk 0:02:56]}  gxf6 {[%clk 0:02:52]} 9. exd5 {[%clk 0:02:56]}  Qxd5 {[%clk 0:02:51]} 10. Qxd5 {[%clk 0:02:56]}  Bxd5 {[%clk 0:02:52]} 11. Nc3 {[%clk 0:02:57]}  Bc6 {[%clk 0:02:50]} 12. O-O-O {[%clk 0:02:57]}  Bb4 {[%clk 0:02:48]} 13. Nd5 {[%clk 0:02:56]}  Bxd5 {[%clk 0:02:45]} 14. Rxd5 {[%clk 0:02:57]}  Nc6 {[%clk 0:02:44]} 15. Bd3 {[%clk 0:02:48]}  Rd8 {[%clk 0:02:18]} 16. Be4 {[%clk 0:02:48]}  Rxd5 {[%clk 0:02:15]} 17. Bxd5 {[%clk 0:02:49]}  Nd8 {[%clk 0:02:12]} 18. c3 {[%clk 0:02:40]}  Bd6 {[%clk 0:02:11]} 19. g4 {[%clk 0:02:37]}  Ke7 {[%clk 0:02:09]} 20. h4 {[%clk 0:02:35]}  h5 {[%clk 0:02:08]} 21. Nd2 {[%clk 0:02:32]}  Ne6 {[%clk 0:02:03]} 22. Ne4 {[%clk 0:02:29]}  Bc7 {[%clk 0:01:49]} 23. Ng3 {[%clk 0:02:24]}  Nf4 {[%clk 0:01:46]} 24. Nf5+ {[%clk 0:02:21]}  Ke8 {[%clk 0:01:45]} 25. Bxb7 {[%clk 0:02:22]}  hxg4 {[%clk 0:01:35]} 26. fxg4 {[%clk 0:02:23]}  Rg8 {[%clk 0:01:33]} 27. Bc6+ {[%clk 0:02:21]}  Kd8 {[%clk 0:01:27]} 28. Rd1+ {[%clk 0:02:20]} 1-0


[Site "https://www.chess.com"]

[Event "Titled Tuesday Blitz December 27 Early 2022"]
[White "Tarasova, Viktoriya"]
[Black "Amburgy, Ryan"]
[WhiteFideId "4175840"]
[BlackFideId "30924820"]
[WhiteElo "2226"]
[BlackElo "2246"]
[Result "1-0"]
[Round "01"]
[TimeControl "180+2"]
[Date "2022.12.27"]
[WhiteClock "0:00:24"]
[BlackClock "0:00:15"]

1. d4 {[%clk 0:03:00]}  Nf6 {[%clk 0:02:59]} 2. c4 {[%clk 0:02:59]}  e6 {[%clk 0:02:59]} 3. Nc3 {[%clk 0:02:59]}  Bb4 {[%clk 0:02:59]} 4. Nf3 {[%clk 0:02:59]}  O-O {[%clk 0:02:59]} 5. Bg5 {[%clk 0:02:58]}  h6 {[%clk 0:02:58]} 6. Bh4 {[%clk 0:02:58]}  b6 {[%clk 0:02:52]} 7. e3 {[%clk 0:02:57]}  Bb7 {[%clk 0:02:52]} 8. Bd3 {[%clk 0:02:57]}  d6 {[%clk 0:02:51]} 9. O-O {[%clk 0:02:57]}  Bxc3 {[%clk 0:02:52]} 10. bxc3 {[%clk 0:02:57]}  Nbd7 {[%clk 0:02:52]} 11. Nd2 {[%clk 0:02:57]}  e5 {[%clk 0:02:49]} 12. f4 {[%clk 0:02:55]}  exd4 {[%clk 0:02:49]} 13. exd4 {[%clk 0:02:53]}  Re8 {[%clk 0:02:48]} 14. Qc2 {[%clk 0:02:51]}  Qe7 {[%clk 0:02:46]} 15. Rae1 {[%clk 0:02:47]}  Qf8 {[%clk 0:02:46]} 16. h3 {[%clk 0:02:35]}  Rxe1 {[%clk 0:02:44]} 17. Rxe1 {[%clk 0:02:35]}  Re8 {[%clk 0:02:45]} 18. Qd1 {[%clk 0:02:31]}  Re7 {[%clk 0:02:35]} 19. Rxe7 {[%clk 0:02:28]}  Qxe7 {[%clk 0:02:36]} 20. Qe1 {[%clk 0:02:27]}  Qxe1+ {[%clk 0:02:08]} 21. Bxe1 {[%clk 0:02:27]}  Nh5 {[%clk 0:02:09]} 22. g3 {[%clk 0:02:26]}  a5 {[%clk 0:02:00]} 23. Kf2 {[%clk 0:02:23]}  Kf8 {[%clk 0:01:58]} 24. Be2 {[%clk 0:02:14]}  Nhf6 {[%clk 0:01:58]} 25. Ke3 {[%clk 0:02:12]}  Bg2 {[%clk 0:01:56]} 26. Bf1 {[%clk 0:01:50]}  Bxf1 {[%clk 0:01:55]} 27. Nxf1 {[%clk 0:01:51]}  Ke7 {[%clk 0:01:43]} 28. g4 {[%clk 0:01:50]}  c6 {[%clk 0:01:25]} 29. Nd2 {[%clk 0:01:49]}  d5 {[%clk 0:01:23]} 30. f5 {[%clk 0:01:42]}  Ne8 {[%clk 0:01:15]} 31. Kd3 {[%clk 0:01:35]}  Nd6 {[%clk 0:01:13]} 32. Bg3 {[%clk 0:01:34]}  Nf6 {[%clk 0:01:10]} 33. Be5 {[%clk 0:01:23]}  b5 {[%clk 0:01:00]} 34. Bxd6+ {[%clk 0:01:05]}  Kxd6 {[%clk 0:01:00]} 35. c5+ {[%clk 0:01:05]}  Kd7 {[%clk 0:01:00]} 36. Ke3 {[%clk 0:01:06]}  Ne8 {[%clk 0:00:35]} 37. Kf4 {[%clk 0:01:04]}  Nc7 {[%clk 0:00:35]} 38. Ke3 {[%clk 0:01:03]}  b4 {[%clk 0:00:31]} 39. cxb4 {[%clk 0:00:57]}  axb4 {[%clk 0:00:32]} 40. Nf3 {[%clk 0:00:53]}  Nb5 {[%clk 0:00:32]} 41. Ne5+ {[%clk 0:00:37]}  Kc7 {[%clk 0:00:30]} 42. Nd3 {[%clk 0:00:32]}  Nc3 {[%clk 0:00:25]} 43. Nxb4 {[%clk 0:00:32]}  Kd7 {[%clk 0:00:24]} 44. a3 {[%clk 0:00:32]}  Kc7 {[%clk 0:00:24]} 45. Nd3 {[%clk 0:00:32]}  f6 {[%clk 0:00:24]} 46. Nf4 {[%clk 0:00:31]}  Kd7 {[%clk 0:00:24]} 47. Nh5 {[%clk 0:00:30]}  Nb5 {[%clk 0:00:24]} 48. a4 {[%clk 0:00:30]}  Nc3 {[%clk 0:00:24]} 49. a5 {[%clk 0:00:30]}  Ne4 {[%clk 0:00:24]} 50. Nxg7 {[%clk 0:00:28]}  Ng5 {[%clk 0:00:25]} 51. h4 {[%clk 0:00:25]}  Ne4 {[%clk 0:00:25]} 52. Nh5 {[%clk 0:00:25]}  Kc7 {[%clk 0:00:26]} 53. Kf4 {[%clk 0:00:25]}  Kb7 {[%clk 0:00:25]} 54. g5 {[%clk 0:00:23]}  hxg5+ {[%clk 0:00:25]} 55. hxg5 {[%clk 0:00:23]}  fxg5+ {[%clk 0:00:26]} 56. Kg4 {[%clk 0:00:24]}  Kc7 {[%clk 0:00:15]} 57. f6 {[%clk 0:00:24]} 1-0


[Site "https://www.chess.com"]

[Event "Titled Tuesday Blitz December 27 Early 2022"]
[White "Thomforde-Toates, Noah"]
[Black "Fernandez Siles, Luis"]
[WhiteFideId "30951992"]
[BlackFideId "2209420"]
[WhiteElo "2124"]
[BlackElo "2218"]
[Result "1-0"]
[Round "01"]
[TimeControl "180+2"]
[Date "2022.12.27"]
[WhiteClock "0:01:55"]
[BlackClock "0:00:43"]

1. d4 {[%clk 0:02:33]}  Nf6 {[%clk 0:02:58]} 2. Nc3 {[%clk 0:02:33]}  d5 {[%clk 0:02:55]} 3. Bf4 {[%clk 0:02:33]}  c6 {[%clk 0:02:53]} 4. e3 {[%clk 0:02:33]}  g6 {[%clk 0:02:50]} 5. Bd3 {[%clk 0:02:31]}  Bg7 {[%clk 0:02:49]} 6. h4 {[%clk 0:02:31]}  h5 {[%clk 0:02:48]} 7. Nf3 {[%clk 0:02:31]}  Bg4 {[%clk 0:02:48]} 8. Qd2 {[%clk 0:02:31]}  Bxf3 {[%clk 0:02:47]} 9. gxf3 {[%clk 0:02:31]}  Nbd7 {[%clk 0:02:35]} 10. Rg1 {[%clk 0:02:29]}  Qa5 {[%clk 0:02:28]} 11. O-O-O {[%clk 0:02:21]}  O-O-O {[%clk 0:02:28]} 12. Kb1 {[%clk 0:02:21]}  Ne8 {[%clk 0:01:46]} 13. e4 {[%clk 0:02:03]}  Bxd4 {[%clk 0:01:27]} 14. Nxd5 {[%clk 0:01:58]}  Qc5 {[%clk 0:00:43]} 15. b4 {[%clk 0:01:55]} 1-0


[Site "https://www.chess.com"]

[Event "Titled Tuesday Blitz December 27 Early 2022"]
[White "Tikhonov, Viacheslav"]
[Black "Svane, Rasmus"]
[WhiteFideId "44196407"]
[BlackFideId "4657101"]
[WhiteElo "2220"]
[BlackElo "2623"]
[Result "1/2-1/2"]
[Round "01"]
[TimeControl "180+2"]
[Date "2022.12.27"]
[WhiteClock "0:01:57"]
[BlackClock "0:01:50"]

1. d4 {[%clk 0:02:53]}  d5 {[%clk 0:02:48]} 2. c4 {[%clk 0:02:53]}  e6 {[%clk 0:02:48]} 3. Nf3 {[%clk 0:02:53]}  a6 {[%clk 0:02:49]} 4. g3 {[%clk 0:02:54]}  dxc4 {[%clk 0:02:49]} 5. Bg2 {[%clk 0:02:54]}  b5 {[%clk 0:02:48]} 6. Ne5 {[%clk 0:02:50]}  c6 {[%clk 0:02:48]} 7. a4 {[%clk 0:02:47]}  Bb7 {[%clk 0:02:47]} 8. O-O {[%clk 0:02:44]}  Nf6 {[%clk 0:02:47]} 9. b3 {[%clk 0:02:44]}  cxb3 {[%clk 0:02:44]} 10. Qxb3 {[%clk 0:02:44]}  Be7 {[%clk 0:02:43]} 11. axb5 {[%clk 0:02:31]}  axb5 {[%clk 0:02:44]} 12. Rxa8 {[%clk 0:02:30]}  Bxa8 {[%clk 0:02:44]} 13. Qa2 {[%clk 0:02:29]}  Bb7 {[%clk 0:02:39]} 14. Qa7 {[%clk 0:02:28]}  Qc8 {[%clk 0:02:30]} 15. Nc3 {[%clk 0:02:24]}  b4 {[%clk 0:02:08]} 16. Na4 {[%clk 0:02:20]}  O-O {[%clk 0:02:03]} 17. Nb6 {[%clk 0:02:12]}  Qc7 {[%clk 0:02:01]} 18. Na8 {[%clk 0:02:05]}  Qc8 {[%clk 0:01:52]} 19. Nb6 {[%clk 0:02:04]}  Qc7 {[%clk 0:01:50]} 20. Na8 {[%clk 0:01:57]}  Qc8 {[%clk 0:01:50]} 21. Nb6 {[%clk 0:01:57]} 1/2-1/2


[Site "https://www.chess.com"]